bitfinex/quotes_BTCUSD_20230107
["timestamp","ask_amount","ask_price","bid_price","bid_amount"]
[1673097698569,0.0771312,16931.0,16930.0,14.27016053]
[1673097699532,0.0771312,16931.0,16930.0,14.80082356]
[1673097701615,0.0771312,16931.0,16930.0,14.20082356]
[1673097701895,0.0771312,16931.0,16930.0,13.90550356]
[1673097702414,0.0771312,16931.0,16930.0,14.17104589]
[1673097702681,0.0771312,16931.0,16930.0,13.90550356]
[1673097706465,0.0771312,16931.0,16930.0,14.20082356]
[1673097710362,0.0771312,16931.0,16930.0,14.46635972]
[1673097710614,0.0771312,16931.0,16930.0,14.20082356]
[1673097712823,0.0771312,16931.0,16930.0,14.44000333]
[1673097713074,0.0771312,16931.0,16930.0,14.44000224]
[1673097713821,0.0771312,16931.0,16930.0,13.99742156]
[1673097716273,0.0771312,16931.0,16930.0,12.10609211]
[1673097716526,0.0771312,16931.0,16930.0,13.28318956]
[1673097716751,0.0771312,16931.0,16930.0,13.70210156]
[1673097719056,0.0771312,16931.0,16930.0,12.87912896]
[1673097719313,0.0771312,16931.0,16930.0,13.70210156]
[1673097725482,0.0771312,16931.0,16930.0,13.99743156]
[1673097727952,0.0771312,16931.0,16930.0,13.99742156]
[1673097742581,0.0771312,16931.0,16930.0,13.28318956]
[1673097743083,0.0771312,16931.0,16930.0,13.08318956]
[1673097743349,0.0771312,16931.0,16930.0,13.50210156]
[1673097744199,0.0771312,16931.0,16930.0,13.70210156]
[1673097745940,0.0771312,16931.0,16930.0,13.99742156]
[1673097746963,0.0771312,16931.0,16930.0,13.70203779]
[1673097747902,0.0771312,16931.0,16930.0,14.17096196]
[1673097748160,0.0771312,16931.0,16930.0,13.90542774]
[1673097748696,0.0771312,16931.0,16930.0,13.37476471]
[1673097749036,0.0771312,16931.0,16930.0,14.02196414]
[1673097750037,0.0771312,16931.0,16930.0,14.31728414]
[1673097750582,0.0771312,16931.0,16930.0,14.31734791]
[1673097751127,0.0771312,16931.0,16930.0,14.02202791]
[1673097751382,0.0771312,16931.0,16930.0,14.31734791]
[1673097751606,0.0771312,16931.0,16930.0,14.58288637]
[1673097751906,0.0771312,16931.0,16930.0,14.14030569]
[1673097752147,0.0771312,16931.0,16930.0,14.14031569]
[1673097753932,0.0771312,16931.0,16930.0,13.84498569]
[1673097754182,0.0771312,16931.0,16930.0,14.14030569]
[1673097754688,0.0771312,16931.0,16930.0,13.93568694]
[1673097754905,0.0771312,16931.0,16930.0,14.10847918]
[1673097756501,0.0771312,16931.0,16930.0,14.55105986]
[1673097759491,0.0771312,16931.0,16930.0,14.2855214]
[1673097760843,0.0771312,16931.0,16930.0,14.55108268]
[1673097762922,0.0771312,16931.0,16930.0,14.2855214]
[1673097765434,0.0771312,16931.0,16930.0,14.2855314]
[1673097771009,0.0771312,16931.0,16930.0,14.87947907]
[1673097772819,0.0771312,16931.0,16930.0,14.83808795]
[1673097773337,0.0771312,16931.0,16930.0,14.88387103]
[1673097774581,0.0771312,16931.0,16930.0,15.51927821]
[1673097775096,0.0771312,16931.0,16930.0,14.91927821]
[1673097775365,0.0771312,16931.0,16930.0,14.50036621]
[1673097775616,0.0771312,16931.0,16930.0,15.51927821]
[1673097777363,0.0771312,16931.0,16930.0,14.91927821]
[1673097777587,0.0771312,16931.0,16930.0,15.16513935]
[1673097778068,0.0771312,16931.0,16930.0,15.51915073]
[1673097780338,0.0771312,16931.0,16930.0,14.91915073]
[1673097780836,0.0771312,16931.0,16930.0,14.50023873]
[1673097781846,0.0771312,16931.0,16930.0,14.20490873]
[1673097782089,0.0771312,16931.0,16930.0,13.92272401]
[1673097782612,0.0771312,16931.0,16930.0,14.36530469]
[1673097782859,0.0771312,16931.0,16930.0,14.78421669]
[1673097783111,0.0771312,16931.0,16930.0,14.51871771]
[1673097783863,0.0771312,16931.0,16930.0,14.09980571]
[1673097784110,0.0771312,16931.0,16930.0,15.11871771]
[1673097784860,0.0771312,16931.0,16930.0,14.51871771]
[1673097785641,0.0771312,16931.0,16930.0,14.09986948]
[1673097787177,0.0771312,16931.0,16930.0,14.51878148]
[1673097788176,0.0771312,16931.0,16930.0,14.81410148]
[1673097790698,0.0771312,16931.0,16930.0,14.39518948]
[1673097790945,0.0771312,16931.0,16930.0,14.81410148]
[1673097792886,0.0771312,16931.0,16930.0,14.81411148]
[1673097793983,0.0771312,16931.0,16930.0,14.39519948]
[1673097797939,0.0771312,16931.0,16930.0,14.81411148]
[1673097798429,0.0771312,16931.0,16930.0,14.39519948]
[1673097798926,0.0771312,16931.0,16930.0,14.81411148]
[1673097799167,0.0771312,16931.0,16930.0,14.39519948]
[1673097799916,0.0771312,16931.0,16930.0,14.66070596]
[1673097800144,0.0771312,16931.0,16930.0,14.66070698]
[1673097800419,0.0771312,16931.0,16930.0,14.39519948]
[1673097801947,0.0771312,16931.0,16930.0,14.81411148]
[1673097803668,0.0771312,16931.0,16930.0,14.39519948]
[1673097803912,0.0771312,16931.0,16930.0,14.19519948]
[1673097804899,0.0771312,16931.0,16930.0,14.39519948]
[1673097805448,0.0771312,16931.0,16930.0,14.09980571]
[1673097805700,0.0771312,16931.0,16930.0,14.36533026]
[1673097805957,0.0771312,16931.0,16930.0,14.09980571]
[1673097806720,0.0771312,16931.0,16930.0,14.51871771]
[1673097807492,0.0771312,16931.0,16930.0,14.09980571]
[1673097809017,0.0771312,16931.0,16930.0,14.36540478]
[1673097809295,0.0771312,16931.0,16930.0,13.9228241]
[1673097810333,0.0771312,16931.0,16930.0,14.36540478]
[1673097810552,0.0771312,16931.0,16930.0,13.9228241]
[1673097811054,0.0771312,16931.0,16930.0,14.36540478]
[1673097811275,0.0771312,16931.0,16930.0,14.09986948]
[1673097812265,0.0771312,16931.0,16930.0,14.39519948]
[1673097813266,0.0771312,16931.0,16930.0,14.21814355]
[1673097813521,0.0771312,16931.0,16930.0,14.39519948]
[1673097813778,0.0771312,16931.0,16930.0,14.66072482]
[1673097815149,0.0771312,16931.0,16930.0,14.39519948]
[1673097815405,0.0771312,16931.0,16930.0,14.39518948]
[1673097816385,0.0771312,16931.0,16930.0,14.81410148]
[1673097816885,0.0771312,16931.0,16930.0,14.39518948]
[1673097817649,0.0771312,16931.0,16930.0,14.66071865]
[1673097817925,0.0771312,16931.0,16930.0,14.66071767]
[1673097818936,0.0771312,16931.0,16930.0,14.36539767]
[1673097819952,0.0771312,16931.0,16930.0,14.09986948]
[1673097820201,0.0771312,16931.0,16930.0,13.91858242]
[1673097820569,0.6849882,16931.0,16930.0,13.91858242]
[1673097821761,0.0771312,16931.0,16930.0,13.91858242]
[1673097824008,0.0771312,16931.0,16930.0,13.91864619]
[1673097824484,0.0771312,16931.0,16930.0,14.21397619]
[1673097836617,0.0771312,16931.0,16930.0,14.1876327]
[1673097836861,0.0771312,16931.0,16930.0,14.21495696]
[1673097841916,0.0771312,16931.0,16930.0,14.63386896]
[1673097842172,0.0771312,16931.0,16930.0,14.33853896]
[1673097842416,0.0771312,16931.0,16930.0,14.63385896]
[1673097843400,0.0771312,16931.0,16930.0,14.33853896]
[1673097843646,0.0771312,16931.0,16930.0,13.91962696]
[1673097845141,0.0771312,16931.0,16930.0,14.21494696]
[1673097846160,0.0771312,16931.0,16930.0,14.21495696]
[1673097849585,0.0771312,16931.0,16930.0,13.30437923]
[1673097850101,0.6849882,16931.0,16930.0,13.30437923]
[1673097850360,0.86222642,16931.0,16930.0,12.38146631]
[1673097851677,0.6849882,16931.0,16930.0,12.18146631]
[1673097851680,0.6849882,16931.0,16930.0,12.38146631]
[1673097851931,0.6849882,16931.0,16930.0,12.18146631]
[1673097852959,0.86222642,16931.0,16930.0,11.58751864]
[1673097853229,0.86222642,16931.0,16930.0,11.78879438]
[1673097853480,0.6849882,16931.0,16930.0,11.78879438]
[1673097855289,0.6849882,16931.0,16930.0,12.34199928]
[1673097855533,0.0771312,16931.0,16930.0,12.34199928]
[1673097856034,0.0771312,16931.0,16930.0,12.60754904]
[1673097859336,0.0771312,16931.0,16930.0,13.29076732]
[1673097859582,0.0771312,16931.0,16930.0,12.60754904]
[1673097860334,0.0771312,16931.0,16930.0,12.34072354]
[1673097863925,0.0771312,16931.0,16930.0,12.63726867]
[1673097865189,0.0771312,16931.0,16930.0,12.14193867]
[1673097865970,0.0771312,16931.0,16930.0,12.31461441]
[1673097866448,0.0771312,16931.0,16930.0,12.3414614]
[1673097866677,0.0771312,16931.0,16930.0,12.60701116]
[1673097867429,0.0771312,16931.0,16930.0,13.28983562]
[1673097867935,0.0771312,16931.0,16930.0,12.60701116]
[1673097868183,0.0771312,16931.0,16930.0,12.34024627]
[1673097869164,0.0771312,16931.0,16930.0,12.34030702]
[1673097873350,0.0771312,16931.0,16930.0,12.60585678]
[1673097874082,0.0771312,16931.0,16930.0,13.28869752]
[1673097876107,0.0771312,16931.0,16930.0,12.60579603]
[1673097876396,0.0771312,16931.0,16930.0,12.34024627]
[1673097876646,0.0771312,16931.0,16930.0,12.60579603]
[1673097878896,0.0771312,16931.0,16930.0,13.28786776]
[1673097879863,0.0771312,16931.0,16930.0,13.28798333]
[1673097880133,0.0771312,16931.0,16930.0,13.70689533]
[1673097880390,0.0771312,16931.0,16930.0,13.28798333]
[1673097881143,0.0771312,16931.0,16930.0,13.70689533]
[1673097881403,0.0771312,16931.0,16930.0,11.93489433]
[1673097881657,0.0771312,16931.0,16930.0,13.28798333]
[1673097881883,0.60684581,16933.0,16931.0,0.7]
[1673097882175,0.60684581,16933.0,16932.0,1.771791]
[1673097882411,0.60684581,16933.0,16932.0,2.071791]
[1673097883203,0.61084581,16933.0,16932.0,2.60313659]
[1673097884497,0.60684581,16933.0,16932.0,2.60313659]
[1673097884753,0.60684581,16933.0,16932.0,2.61113659]
[1673097891138,0.60684581,16933.0,16932.0,2.65709923]
[1673097901099,1.04973748,16933.0,16932.0,2.65709923]
[1673097901357,1.04973748,16933.0,16932.0,2.64929223]
[1673097901885,0.60684581,16933.0,16932.0,2.64929223]
[1673097913286,0.60684581,16933.0,16932.0,3.06814923]
[1673097913538,0.60684581,16933.0,16932.0,2.64929223]
[1673097913783,0.60684581,16933.0,16932.0,3.06814723]
[1673097915214,0.60684581,16933.0,16932.0,2.64929223]
[1673097915709,0.60684581,16933.0,16932.0,3.06814723]
[1673097915931,0.60684581,16933.0,16932.0,3.09669929]
[1673097918251,0.60684581,16933.0,16932.0,2.67784429]
[1673097919427,0.60684581,16933.0,16932.0,3.09669929]
[1673097920748,0.60684581,16933.0,16932.0,2.67784429]
[1673097921527,0.60684581,16933.0,16932.0,3.09669929]
[1673097922029,0.60684581,16933.0,16932.0,2.67784429]
[1673097923923,0.60684581,16933.0,16932.0,3.22799343]
[1673097924173,0.60684581,16933.0,16932.0,3.09669929]
[1673097924442,0.60684581,16933.0,16932.0,2.67784429]
[1673097926930,0.60684581,16933.0,16932.0,3.09669929]
[1673097927178,0.60684581,16933.0,16932.0,2.67784429]
[1673097930255,0.60684581,16933.0,16932.0,3.09669929]
[1673097930694,0.60684581,16933.0,16932.0,2.67784429]
[1673097932354,0.60684581,16933.0,16932.0,3.22799343]
[1673097932613,0.60684581,16933.0,16932.0,3.23649343]
[1673097932835,0.60684581,16933.0,16932.0,2.68634429]
[1673097936993,0.60684581,16933.0,16932.0,3.23649343]
[1673097937491,0.60684581,16933.0,16932.0,3.20794137]
[1673097937852,0.60684581,16933.0,16932.0,3.23649343]
[1673097938093,0.60684581,16933.0,16932.0,2.68634429]
[1673097939589,0.78412196,16933.0,16932.0,2.68634429]
[1673097940868,0.60684581,16933.0,16932.0,2.68634429]
[1673097941330,0.78411953,16933.0,16932.0,2.68634429]
[1673097941807,0.60684581,16933.0,16932.0,2.68634429]
[1673097942046,0.78411864,16933.0,16932.0,2.68634429]
[1673097942773,0.78411864,16933.0,16932.0,2.65779223]
[1673097943079,0.60684581,16933.0,16932.0,2.65779223]
[1673097943598,0.78411868,16933.0,16932.0,2.65779223]
[1673097943861,0.44315286,16933.0,16932.0,3.20794137]
[1673097944158,0.44315286,16933.0,16932.0,2.65779223]
[1673097944424,0.44315286,16933.0,16932.0,3.20794137]
[1673097948667,0.44315286,16933.0,16932.0,10.70794137]
[1673097949914,0.44315286,16933.0,16932.0,10.15779223]
[1673097951356,0.7841184,16933.0,16932.0,10.15779223]
[1673097951617,0.44315286,16933.0,16932.0,10.15779223]
[1673097952571,0.7841184,16933.0,16932.0,10.15779223]
[1673097953378,0.44315286,16933.0,16932.0,10.15779223]
[1673097954396,0.60684581,16933.0,16932.0,10.15779223]
[1673097954642,0.60684581,16933.0,16932.0,2.65779223]
[1673097957521,0.78410119,16933.0,16932.0,2.65779223]
[1673097957983,0.60684581,16933.0,16932.0,2.65779223]
[1673097960342,0.60684581,16933.0,16932.0,3.20794137]
[1673097960560,0.60684581,16933.0,16932.0,2.65779223]
[1673097964685,0.17725148,16933.0,16932.0,3.20794137]
[1673097964955,0.44313175,16933.0,16932.0,3.62679637]
[1673097965225,0.17725148,16933.0,16932.0,10.70794137]
[1673097965474,0.17725148,16933.0,16932.0,11.3038257]
[1673097965725,0.17725148,16933.0,16932.0,11.70794137]
[1673097966022,0.17725148,16933.0,16932.0,10.70794137]
[1673097966525,0.17725148,16933.0,16932.0,12.12679637]
[1673097966765,0.17725148,16933.0,16932.0,10.70794137]
[1673097967809,0.17725148,16933.0,16932.0,11.70794137]
[1673097968318,0.17725148,16933.0,16932.0,10.70794137]
[1673097968571,0.17725148,16933.0,16932.0,12.12679637]
[1673097969318,0.17725148,16933.0,16932.0,11.70794137]
[1673097969574,0.17725148,16933.0,16932.0,11.12679637]
[1673097969814,0.17725148,16933.0,16932.0,11.70794137]
[1673097970330,0.17725148,16933.0,16932.0,11.12679637]
[1673097970582,0.17725148,16933.0,16932.0,10.70794137]
[1673097972285,0.44313175,16933.0,16932.0,10.70794137]
[1673097972538,0.17725148,16933.0,16932.0,10.70794137]
[1673097973739,0.17725148,16933.0,16932.0,11.12679637]
[1673097973847,0.17725148,16933.0,16932.0,10.70794137]
[1673097974063,0.44313175,16933.0,16932.0,10.70794137]
[1673097975956,0.44313175,16933.0,16932.0,11.12679637]
[1673097976231,0.44313175,16933.0,16932.0,10.70794137]
[1673097978953,0.44313175,16933.0,16932.0,11.12679637]
[1673097979425,0.44313175,16933.0,16932.0,10.70794137]
[1673097979652,0.44313175,16933.0,16932.0,11.12679637]
[1673097981126,0.44313175,16933.0,16932.0,10.70794137]
[1673097981387,0.44313175,16933.0,16932.0,11.12679637]
[1673097982169,0.17725148,16933.0,16932.0,10.70794137]
[1673097982895,0.17725148,16933.0,16932.0,11.12679637]
[1673097983380,0.17725148,16933.0,16932.0,10.70794137]
[1673097984104,0.44313175,16933.0,16932.0,10.70794137]
[1673097984618,0.17725148,16933.0,16932.0,11.12679637]
[1673097984871,0.17725148,16933.0,16932.0,11.15459006]
[1673097985125,0.17725148,16933.0,16932.0,12.15459006]
[1673097986166,0.17725148,16933.0,16932.0,10.73573506]
[1673097986663,0.17725148,16933.0,16932.0,10.73684025]
[1673097986905,0.17725148,16933.0,16932.0,11.15569525]
[1673097987409,0.17725148,16933.0,16932.0,10.73684025]
[1673097987674,0.17725148,16933.0,16932.0,11.15569525]
[1673097988184,0.17725148,16933.0,16932.0,10.73684025]
[1673097989207,0.44313175,16933.0,16932.0,10.73684025]
[1673098003332,0.44313175,16933.0,16932.0,11.33272458]
[1673098003591,0.44313175,16933.0,16932.0,12.48036675]
[1673098003859,0.17725148,16933.0,16932.0,11.48036675]
[1673098004117,0.17725148,16933.0,16932.0,11.06151175]
[1673098004622,0.17725148,16933.0,16932.0,12.06151175]
[1673098004875,0.17725148,16933.0,16932.0,11.06151175]
[1673098005704,0.17725148,16933.0,16932.0,12.06151175]
[1673098006429,0.17725148,16933.0,16932.0,11.06151175]
[1673098006684,0.44313175,16933.0,16932.0,11.06151175]
[1673098007997,0.44313175,16933.0,16932.0,3.56151175]
[1673098009045,0.44313175,16933.0,16932.0,3.98036675]
[1673098009846,0.44313175,16933.0,16932.0,3.55781175]
[1673098010077,0.44313175,16933.0,16932.0,3.97666675]
[1673098010606,0.44313175,16933.0,16932.0,3.55781175]
[1673098011033,0.44313175,16933.0,16932.0,3.38078242]
[1673098013113,0.44313175,16933.0,16932.0,3.55781175]
[1673098018543,0.44313175,16933.0,16932.0,11.05781175]
[1673098018774,0.44313175,16933.0,16932.0,11.47666675]
[1673098019026,0.44313175,16933.0,16932.0,11.05781175]
[1673098019275,0.44313175,16933.0,16932.0,11.47666675]
[1673098020038,0.44313175,16933.0,16932.0,11.05781175]
[1673098021808,0.44313175,16933.0,16932.0,10.88078242]
[1673098022557,0.44313175,16933.0,16932.0,11.05781175]
[1673098022777,0.44313175,16933.0,16932.0,11.47666675]
[1673098023834,0.44313175,16933.0,16932.0,11.05781175]
[1673098024333,0.44313175,16933.0,16932.0,10.88078242]
[1673098024838,0.44313175,16933.0,16932.0,11.05781175]
[1673098026078,0.44313175,16933.0,16932.0,10.88078242]
[1673098027295,0.44313175,16933.0,16932.0,11.05781175]
[1673098027511,0.44313175,16933.0,16932.0,10.88078242]
[1673098028006,0.44313175,16933.0,16932.0,11.05781175]
[1673098028830,0.44313175,16933.0,16932.0,10.88078242]
[1673098031575,0.44313175,16933.0,16932.0,11.29963742]
[1673098032070,0.44313175,16933.0,16932.0,10.88078242]
[1673098032323,0.44313175,16933.0,16932.0,11.29963742]
[1673098032574,0.44313175,16933.0,16932.0,10.88078242]
[1673098032831,0.44313175,16933.0,16932.0,11.29963742]
[1673098033264,0.44313175,16933.0,16932.0,11.47666675]
[1673098034017,0.44313175,16933.0,16932.0,11.05781175]
[1673098034765,0.44313175,16933.0,16932.0,10.88078242]
[1673098035332,0.44313175,16933.0,16932.0,11.29963742]
[1673098035579,0.44313175,16933.0,16932.0,11.47666675]
[1673098036847,0.44313175,16933.0,16932.0,11.05781175]
[1673098038078,0.44313175,16933.0,16932.0,3.55781175]
[1673098040257,0.44313175,16933.0,16932.0,3.97666675]
[1673098040761,0.17725148,16933.0,16932.0,3.97666675]
[1673098042341,0.44313175,16933.0,16932.0,3.97666675]
[1673098042645,0.17725148,16933.0,16932.0,3.55781175]
[1673098042917,0.17725148,16933.0,16932.0,3.97666675]
[1673098044745,0.44313175,16933.0,16932.0,3.55781175]
[1673098046017,0.17725148,16933.0,16932.0,3.97666675]
[1673098047268,0.17725148,16933.0,16932.0,3.55781175]
[1673098048266,0.17725148,16933.0,16932.0,3.97666675]
[1673098048761,0.17725148,16933.0,16932.0,3.55781175]
[1673098049012,0.17725148,16933.0,16932.0,3.00766261]
[1673098049246,0.44313175,16933.0,16932.0,2.83063328]
[1673098049514,0.44313175,16933.0,16932.0,3.55781175]
[1673098050985,0.44313175,16933.0,16932.0,3.97666675]
[1673098051248,0.17725148,16933.0,16932.0,3.97666675]
[1673098051460,0.17725148,16933.0,16932.0,3.55781175]
[1673098051679,0.44313175,16933.0,16932.0,3.55781175]
[1673098051966,0.17725148,16933.0,16932.0,3.97666675]
[1673098052748,0.17725148,16933.0,16932.0,3.55781175]
[1673098053240,0.44313175,16933.0,16932.0,3.55781175]
[1673098054444,0.17725148,16933.0,16932.0,3.55781175]
[1673098057220,0.17725148,16933.0,16932.0,3.97666675]
[1673098058450,0.17725148,16933.0,16932.0,3.55781175]
[1673098058696,0.17725148,16933.0,16932.0,11.05781175]
[1673098058956,0.17725148,16933.0,16932.0,11.47666675]
[1673098059672,0.17725148,16933.0,16932.0,11.05781175]
[1673098061677,0.17725148,16933.0,16932.0,11.03001806]
[1673098062435,0.17725148,16933.0,16932.0,11.05626041]
[1673098063652,0.17725148,16933.0,16932.0,11.47511541]
[1673098064905,0.17725148,16933.0,16932.0,11.05626041]
[1673098065580,0.17725148,16933.0,16932.0,11.47511541]
[1673098065835,0.17725148,16933.0,16932.0,11.05626041]
[1673098066231,0.17725148,16933.0,16932.0,11.03001806]
[1673098066487,0.17725148,16933.0,16932.0,11.44887306]
[1673098067111,0.17725148,16933.0,16932.0,11.03001806]
[1673098067709,0.17725148,16933.0,16932.0,12.03001806]
[1673098067950,0.17725148,16933.0,16932.0,11.44887306]
[1673098068751,0.17725148,16933.0,16932.0,11.03001806]
[1673098068995,0.17725148,16933.0,16932.0,11.44887306]
[1673098069624,0.17725148,16933.0,16932.0,11.03001806]
[1673098070261,0.17725148,16933.0,16932.0,11.44887306]
[1673098070555,0.17725148,16933.0,16932.0,12.44887306]
[1673098071076,0.17725148,16933.0,16932.0,12.03001806]
[1673098071590,0.17725148,16933.0,16932.0,11.03001806]
[1673098072494,0.17725148,16933.0,16932.0,12.03001806]
[1673098073327,0.17725148,16933.0,16932.0,11.07937147]
[1673098075509,0.17725148,16933.0,16932.0,11.10561382]
[1673098078060,0.17725148,16933.0,16932.0,11.52446882]
[1673098078809,0.17725148,16933.0,16932.0,11.10561382]
[1673098079034,0.17725148,16933.0,16932.0,12.10561382]
[1673098079258,0.17725148,16933.0,16932.0,12.79001858]
[1673098080271,0.17725148,16933.0,16932.0,12.38025807]
[1673098081283,0.17725148,16933.0,16932.0,12.35401572]
[1673098081560,0.44437625,16934.0,16932.0,13.5062738]
[1673098081824,0.44437625,16934.0,16933.0,0.0085]
[1673098082071,0.44437625,16934.0,16933.0,2.308452]
[1673098082329,0.44437625,16934.0,16933.0,2.189624]
[1673098082771,0.44437625,16934.0,16933.0,2.8076141]
[1673098083046,0.44437625,16934.0,16933.0,2.83385645]
[1673098083544,0.44437625,16934.0,16933.0,2.84385645]
[1673098083799,0.50137625,16934.0,16933.0,2.14385645]
[1673098084793,0.44437625,16934.0,16933.0,2.13385645]
[1673098085047,0.44837625,16934.0,16933.0,2.21485645]
[1673098085552,0.45237625,16934.0,16933.0,2.29585645]
[1673098094144,0.18649598,16934.0,16933.0,2.71468245]
[1673098094394,0.18649598,16934.0,16933.0,2.29585645]
[1673098095177,0.18649598,16934.0,16933.0,2.84600559]
[1673098095927,0.18649598,16934.0,16933.0,2.29585645]
[1673098096180,0.18649598,16934.0,16933.0,2.84600559]
[1673098098171,0.18649598,16934.0,16933.0,3.02303492]
[1673098098389,0.18642938,16934.0,16933.0,3.26483159]
[1673098098872,0.18642938,16934.0,16933.0,2.84600559]
[1673098101147,0.18642938,16934.0,16933.0,2.29585645]
[1673098101673,0.18642938,16934.0,16933.0,2.84600559]
[1673098101888,0.18642938,16934.0,16933.0,2.29585645]
[1673098102194,0.18642938,16934.0,16933.0,2.84600559]
[1673098106282,0.45230965,16934.0,16933.0,2.84600559]
[1673098109815,0.45230965,16934.0,16933.0,2.29585645]
[1673098111080,0.45230965,16934.0,16933.0,2.84600559]
[1673098111569,0.45230965,16934.0,16933.0,2.29585645]
[1673098114702,0.45230965,16934.0,16933.0,2.84600559]
[1673098114939,0.45230965,16934.0,16933.0,2.29585645]
[1673098117300,0.45230965,16934.0,16933.0,2.84600559]
[1673098117549,0.45230965,16934.0,16933.0,2.29585645]
[1673098117798,0.45230965,16934.0,16933.0,2.84600559]
[1673098120784,0.45230965,16934.0,16933.0,2.29585645]
[1673098121290,0.18642938,16934.0,16933.0,2.47288578]
[1673098122074,0.18642938,16934.0,16933.0,2.89171178]
[1673098122359,0.18642938,16934.0,16933.0,2.47288578]
[1673098122605,0.45230965,16934.0,16933.0,2.29585645]
[1673098123378,0.45230965,16934.0,16933.0,2.71468245]
[1673098123625,0.18642938,16934.0,16933.0,2.89171178]
[1673098124116,0.45230965,16934.0,16933.0,2.71468245]
[1673098124334,0.45230965,16934.0,16933.0,2.29585645]
[1673098124545,0.45230965,16934.0,16933.0,2.71468245]
[1673098125542,0.18642938,16934.0,16933.0,2.71468245]
[1673098125799,0.18642938,16934.0,16933.0,2.47288578]
[1673098126069,0.18642938,16934.0,16933.0,2.89171178]
[1673098128072,0.18642938,16934.0,16933.0,9.97288578]
[1673098128325,0.18642938,16934.0,16933.0,10.39171178]
[1673098131387,0.18642938,16934.0,16933.0,11.39171178]
[1673098132918,0.18642938,16934.0,16933.0,11.68698178]
[1673098133158,0.18642938,16934.0,16933.0,4.18698178]
[1673098133410,0.18642938,16934.0,16933.0,3.76815578]
[1673098133674,0.18642938,16934.0,16933.0,11.26815578]
[1673098133938,0.18642938,16934.0,16933.0,11.68698178]
[1673098134967,0.18642938,16934.0,16933.0,2.47288578]
[1673098135215,0.18642938,16934.0,16933.0,2.29585645]
[1673098135475,0.18642938,16934.0,16933.0,9.79585645]
[1673098136242,0.18642938,16934.0,16933.0,10.21468245]
[1673098137250,0.18642938,16934.0,16933.0,10.68699178]
[1673098137468,0.18642938,16934.0,16933.0,11.68699178]
[1673098137749,0.18642938,16934.0,16933.0,10.68699178]
[1673098138025,0.18642938,16934.0,16933.0,11.68699178]
[1673098138721,0.18642938,16934.0,16933.0,10.68699178]
[1673098139229,0.18642938,16934.0,16933.0,10.09113645]
[1673098139928,0.18642938,16934.0,16933.0,10.68699178]
[1673098140172,0.18642938,16934.0,16933.0,10.50996245]
[1673098140421,0.18642938,16934.0,16933.0,10.68698178]
[1673098141375,0.18642938,16934.0,16933.0,11.68698178]
[1673098141864,0.18642938,16934.0,16933.0,10.09112645]
[1673098142190,0.18642938,16934.0,16933.0,2.59112645]
[1673098142661,0.18642938,16934.0,16933.0,3.00995245]
[1673098143156,0.18642938,16934.0,16933.0,3.16073943]
[1673098146186,0.18642938,16934.0,16933.0,10.26826908]
[1673098146409,0.18642938,16934.0,16933.0,10.68709508]
[1673098151147,0.18642938,16934.0,16933.0,10.66073943]
[1673098157323,0.18642938,16934.0,16933.0,10.36546943]
[1673098159924,0.0091779,16934.0,16933.0,11.35869061]
[1673098161179,0.0091779,16934.0,16933.0,11.35934891]
[1673098161435,0.0091779,16934.0,16933.0,10.21219319]
[1673098161686,0.18642938,16934.0,16933.0,10.21219319]
[1673098161910,0.18642938,16934.0,16933.0,10.36546943]
[1673098162617,0.18642938,16934.0,16933.0,9.94664343]
[1673098163107,0.18642938,16934.0,16933.0,10.36546943]
[1673098163621,0.0091779,16934.0,16933.0,11.35935564]
[1673098164052,0.0091779,16934.0,16933.0,11.95330331]
[1673098164312,0.0091779,16934.0,16933.0,12.13028536]
[1673098164569,0.0091779,16934.0,16933.0,11.68619526]
[1673098164821,1e-08,16934.0,16933.0,12.12863042]
[1673098165296,1e-08,16934.0,16933.0,12.28807733]
[1673098165522,0.05760669,16935.0,16934.0,0.7]
[1673098165739,0.05760669,16935.0,16934.0,5.32806682]
[1673098165989,0.05760669,16935.0,16934.0,5.74686482]
[1673098166276,0.01002133,16935.0,16934.0,13.24697379]
[1673098166529,0.01002133,16935.0,16934.0,13.07004231]
[1673098166785,0.01002133,16935.0,16934.0,13.74135369]
[1673098167039,0.01002133,16935.0,16934.0,13.56415922]
[1673098167583,0.01002133,16935.0,16934.0,13.59735369]
[1673098167846,0.01002133,16935.0,16934.0,14.29735369]
[1673098168089,3.33126776,16938.0,16937.0,6.80806022]
[1673098168090,3.23126776,16938.0,16937.0,6.80806022]
[1673098168346,0.65592564,16938.0,16937.0,9.18302922]
[1673098168595,0.60699581,16938.0,16937.0,9.18302922]
[1673098168854,0.26588027,16938.0,16937.0,9.18302922]
[1673098169588,0.26588027,16938.0,16937.0,9.23302922]
[1673098169834,2.05048676,16939.0,16937.0,9.23302922]
[1673098169835,1.87347536,16939.0,16937.0,17.73302922]
[1673098170090,1.87347536,16939.0,16938.0,0.3085]
[1673098170091,2.05048676,16939.0,16938.0,0.3085]
[1673098170342,0.80091095,16939.0,16938.0,2.189276]
[1673098170591,0.80091095,16939.0,16938.0,2.72104202]
[1673098170848,0.62343003,16939.0,16938.0,2.72104202]
[1673098172614,0.62343003,16939.0,16938.0,2.02104202]
[1673098174707,0.28246449,16939.0,16938.0,2.02104202]
[1673098174951,0.62343003,16939.0,16938.0,2.02104202]
[1673098176508,0.28246449,16939.0,16938.0,2.02104202]
[1673098178233,0.45930581,16939.0,16938.0,2.02104202]
[1673098181518,0.45930581,16939.0,16938.0,0.61993002]
[1673098182012,0.45930581,16939.0,16938.0,1.21031802]
[1673098182505,0.45930581,16939.0,16938.0,1.71031802]
[1673098182751,0.45930581,16939.0,16938.0,1.21031802]
[1673098183247,0.45930581,16939.0,16938.0,1.51031802]
[1673098185539,0.45930581,16939.0,16938.0,1.91031802]
[1673098186055,0.45930581,16939.0,16938.0,1.51031802]
[1673098186556,0.19389506,16939.0,16938.0,2.21031802]
[1673098187329,0.19389506,16939.0,16938.0,1.51031802]
[1673098187582,0.19389506,16939.0,16938.0,2.21031802]
[1673098188085,0.19389506,16939.0,16938.0,1.51031802]
[1673098188333,0.19389506,16939.0,16938.0,2.01031802]
[1673098190853,0.19389506,16939.0,16938.0,1.51031802]
[1673098191106,0.19389506,16939.0,16938.0,2.01031802]
[1673098193408,0.19389506,16939.0,16938.0,2.01142282]
[1673098195224,0.45930581,16939.0,16938.0,2.01142282]
[1673098196482,0.45930581,16939.0,16938.0,1.51142282]
[1673098196978,0.45930581,16939.0,16938.0,2.01142282]
[1673098197464,0.45930581,16939.0,16938.0,2.21142282]
[1673098198248,0.45930581,16939.0,16938.0,1.51142282]
[1673098198494,0.45930581,16939.0,16938.0,2.11142282]
[1673098198712,0.80027135,16939.0,16938.0,2.11142282]
[1673098198968,0.45930581,16939.0,16938.0,1.51142282]
[1673098199208,0.80027135,16939.0,16938.0,1.51142282]
[1673098200196,0.45930581,16939.0,16938.0,1.51142282]
[1673098200448,0.80027135,16939.0,16938.0,1.51142282]
[1673098200934,0.62343003,16939.0,16938.0,1.51142282]
[1673098201436,0.61564203,16939.0,16938.0,2.26142282]
[1673098202699,0.92191167,16939.0,16938.0,2.26142282]
[1673098202956,0.92191167,16939.0,16938.0,2.30998089]
[1673098203760,0.91952333,16939.0,16938.0,2.30998089]
[1673098204273,0.79073461,16939.0,16938.0,2.30998089]